bitfinex/quotes_ETHUSD_20240608
["timestamp","ask_amount","ask_price","bid_price","bid_amount"]
[1717848246811,8.81289,3683.4,3683.3,0.1559753]
[1717848247015,8.81289,3683.4,3682.7,7.48]
[1717848247016,2.71531,3682.9,3682.7,7.48]
[1717848247353,2.71548,3682.6,3682.1,7.48]
[1717848247502,2.71569,3682.3,3682.2,1.39285466]
[1717848247811,2.71569,3682.3,3681.6,7.48]
[1717848248016,3.0,3682.2,3681.7,1.39285466]
[1717848248225,2.71586,3682.1,3681.7,1.39285466]
[1717848248538,3.0,3682.0,3681.7,1.39285466]
[1717848249366,2.71598,3681.9,3681.7,1.39285466]
[1717848249683,3.0,3681.8,3681.7,1.39285466]
[1717848250267,3.0,3681.8,3681.1,0.00108747]
[1717848250268,2.71613,3681.7,3681.1,0.00108747]
[1717848250473,2.71613,3681.7,3681.2,1.39285466]
[1717848250697,3.0,3681.6,3681.2,1.39285466]
[1717848250988,3.0,3681.6,3681.3,0.15604437]
[1717848251187,3.0,3681.6,3681.4,1.39285466]
[1717848251392,2.71628,3681.5,3681.1,0.00108747]
[1717848251687,2.71628,3681.5,3681.1,1.39394213]
[1717848252074,2.71643,3681.3,3681.1,1.39394213]
[1717848252386,2.71643,3681.3,3681.1,0.00108747]
[1717848252554,3.0,3681.2,3681.1,0.00108747]
[1717848255659,5.373,3681.2,3681.1,0.00108747]
[1717848259187,3.0,3681.2,3681.1,0.00108747]
[1717848259870,2.71643,3681.3,3681.1,0.00108747]
[1717848260275,2.71643,3681.3,3681.2,0.15588805]
[1717848260653,2.71643,3681.3,3681.1,0.00108747]
[1717848260892,2.71643,3681.3,3681.2,0.15588805]
[1717848261182,5.71643,3681.3,3681.1,0.00108747]
[1717848261484,3.0,3681.2,3681.1,1.39394213]
[1717848262159,2.71624,3681.6,3681.1,1.39394213]
[1717848262475,3.0,3681.5,3681.2,1.39285466]
[1717848262992,3.0,3681.5,3681.1,0.00108747]
[1717848262993,2.71637,3681.4,3681.1,0.00108747]
[1717848263283,3.0,3681.3,3681.1,1.39394213]
[1717848265896,2.7165,3681.2,3681.1,0.00108747]
[1717848266102,5.7165,3681.2,3681.1,0.00108747]
[1717848266452,6.28815,3681.2,3681.1,0.00108747]
[1717848266791,8.02815,3681.2,3681.1,0.00108747]
[1717848268323,2.71716,3680.3,3680.2,2.08615346]
[1717848268481,2.71716,3680.3,3680.2,3.47900812]
[1717848268482,5.92858628,3680.3,3680.2,3.47900812]
[1717848272427,5.92858628,3680.3,3680.2,2.08615346]
[1717848275008,6.76893491,3680.3,3680.2,2.08615346]
[1717848276421,2.71783,3679.4,3679.1,0.42561461]
[1717848276591,7.19077749,3680.3,3679.4,2.4121]
[1717848276592,0.58751175,3680.3,3679.4,2.4121]
[1717848276892,2.71703,3680.5,3679.7,1.39285466]
[1717848277092,0.04694964,3680.7,3680.4,1.39285466]
[1717848277293,0.2837242,3681.2,3680.4,1.39285466]
[1717848277294,2.71658,3681.1,3680.4,1.39285466]
[1717848277599,2.76352334,3681.1,3680.4,1.39285466]
[1717848279222,2.76352334,3681.1,3679.8,2.3614]
[1717848279223,2.71678,3680.9,3679.8,2.3614]
[1717848279530,2.7171,3680.4,3679.9,1.39285466]
[1717848279911,3.0,3680.3,3679.9,1.39285466]
[1717848280225,3.0,3680.3,3680.0,0.13802517]
[1717848280525,3.0,3680.3,3680.1,1.39285466]
[1717848280727,3.0,3680.3,3680.0,0.13802517]
[1717848280905,3.0,3680.3,3680.2,0.13826238]
[1717848281106,3.0,3680.3,3680.0,1.39285466]
[1717848281302,3.0,3680.3,3680.2,0.13826238]
[1717848281494,3.0,3680.3,3680.0,1.39285466]
[1717848281696,0.20085045,3680.8,3680.2,0.13835603]
[1717848281892,0.20085045,3680.8,3680.3,1.39285466]
[1717848282132,0.59644338,3680.8,3680.4,3.75425466]
[1717848282314,3.0,3681.0,3680.4,3.75425466]
[1717848282315,2.71678,3680.9,3680.4,3.75425466]
[1717848282527,3.0,3680.8,3680.5,0.13812504]
[1717848282706,3.0,3680.8,3680.6,1.39285466]
[1717848282912,3.0,3680.8,3680.4,2.3614]
[1717848283132,3.0,3680.8,3680.7,0.13812504]
[1717848283334,3.0,3680.8,3680.5,1.39285466]
[1717848283810,2.71687,3680.7,3680.6,0.13803765]
[1717848284149,5.71687,3680.7,3680.6,1.53089231]
[1717848286182,6.288557,3680.7,3680.6,0.13803765]
[1717848286648,2.71721,3680.3,3679.5,2.4812]
[1717848286894,2.71735,3680.1,3679.6,1.39285466]
[1717848287354,3.0,3680.0,3679.6,1.39285466]
[1717848290423,2.71746,3679.9,3679.6,1.39285466]
[1717848291420,3.0,3679.8,3679.6,1.39285466]
[1717848291734,2.71761,3679.7,3679.6,1.39285466]
[1717848292465,5.71761,3679.7,3679.6,1.39285466]
[1717848295759,5.71761,3679.7,3679.6,1.53114203]
[1717848296265,3.0,3679.7,3679.6,1.53114203]
[1717848296437,3.0,3680.1,3679.6,1.53114203]
[1717848297049,3.0,3680.1,3679.6,1.52609172]
[1717848297765,2.71741,3680.0,3679.6,1.52609172]
[1717848297966,3.0,3679.9,3679.6,1.52609172]
[1717848299566,2.71753,3679.8,3679.6,1.52609172]
[1717848299731,3.0,3679.7,3679.6,1.52609172]
[1717848301092,3.0,3679.7,3679.6,0.13828737]
[1717848301234,2.7177,3679.6,3679.3,0.1286762]
[1717848301577,2.7177,3679.6,3679.4,1.39285466]
[1717848301757,3.0,3679.7,3679.5,2.3386]
[1717848302103,3.0,3680.0,3679.6,1.39285466]
[1717848302104,3.0,3679.9,3679.6,1.39285466]
[1717848303932,3.0,3679.9,3679.7,1.39285466]
[1717848306348,3.0,3680.0,3679.7,1.39285466]
[1717848306554,3.0,3680.0,3679.8,2.4766]
[1717848306755,3.0,3680.0,3679.9,1.39285466]
[1717848310576,3.0,3680.0,3679.9,1.44719902]
[1717848310895,3.0,3680.0,3679.9,4.00767955]
[1717848311091,3.0,3680.0,3679.9,4.75767955]
[1717848311092,0.5,3680.0,3679.9,4.75767955]
[1717848311281,0.5,3680.0,3679.9,7.04767955]
[1717848311487,0.5,3680.0,3679.9,8.47132129]
[1717848311680,0.5,3680.0,3679.9,7.72132129]
[1717848311913,0.5,3680.0,3679.9,4.55767955]
[1717848312109,0.5,3680.0,3679.9,7.04767955]
[1717848312316,0.5,3680.0,3679.9,11.04767955]
[1717848312525,0.5,3680.0,3679.9,11.72132129]
[1717848312680,0.5,3680.0,3679.9,10.29767955]
[1717848314388,0.5,3680.0,3679.9,8.55767955]
[1717848315920,0.5,3680.0,3679.9,10.29767955]
[1717848317210,0.5,3680.0,3679.9,8.55767955]
[1717848317413,0.5,3680.0,3679.9,9.30767955]
[1717848319596,0.5,3680.0,3679.9,8.55767955]
[1717848320330,0.5,3680.0,3679.9,8.00767955]
[1717848320716,0.5,3680.0,3679.9,5.53107955]
[1717848321032,0.5,3680.0,3679.9,1.53107955]
[1717848322546,0.5,3680.0,3679.9,3.96127955]
[1717848322824,0.5,3680.0,3679.9,7.96127955]
[1717848323028,0.5,3680.0,3679.9,8.51127955]
[1717848324808,0.5,3680.0,3679.9,7.96127955]
[1717848331832,0.5,3680.0,3679.9,8.0610967]
[1717848335243,2.3765,3682.3,3681.6,2.71615]
[1717848335444,2.3765,3682.3,3681.7,1.39285466]
[1717848335745,2.3765,3682.3,3681.7,1.63027267]
[1717848339480,2.4227,3682.1,3681.7,1.63027267]
[1717848339688,5.4227,3682.1,3681.7,1.63027267]
[1717848340255,2.71592,3682.0,3681.7,1.63027267]
[1717848340464,3.0,3681.9,3681.7,1.63027267]
[1717848342889,3.0,3681.9,3681.7,0.23741801]
[1717848343069,2.71635,3681.5,3680.2,10.19723]
[1717848343440,2.3409,3681.3,3680.4,4.0]
[1717848343776,3.0,3681.4,3680.5,0.19756055]
[1717848344632,3.0,3681.4,3680.1,5.08544]
[1717848344818,3.0,3681.4,3680.6,0.19756055]
[1717848345018,3.0,3681.4,3680.1,5.08544]
[1717848345178,3.0,3681.4,3680.7,0.19756055]
[1717848345385,3.0,3681.4,3680.1,5.08544]
[1717848345681,3.0,3681.4,3680.2,0.19756055]
[1717848346593,3.0,3681.4,3680.2,1.59041521]
[1717848346925,3.0,3681.4,3680.3,2.71714]
[1717848347422,3.0,3681.4,3680.4,0.19756055]
[1717848347723,3.0,3681.4,3680.6,1.39285466]
[1717848348080,0.805725,3681.3,3680.6,1.39285466]
[1717848348283,0.805725,3681.3,3680.7,0.19756055]
[1717848348588,3.0,3681.4,3680.8,1.39285466]
[1717848348804,2.3409,3681.6,3680.8,1.39285466]
[1717848349300,2.3409,3682.0,3681.3,1.39285466]
[1717848349825,2.3409,3682.0,3681.4,0.19778977]
[1717848350027,2.3409,3682.0,3681.5,1.39285466]
[1717848350833,2.3409,3682.0,3681.6,0.19778977]
[1717848351030,2.3409,3682.0,3681.7,1.39285466]
[1717848351592,3.0,3682.5,3681.7,1.39285466]
[1717848351593,2.3409,3682.4,3681.7,1.39285466]
[1717848351829,2.912451,3682.4,3681.7,1.39285466]
[1717848352029,3.0,3682.3,3681.7,1.39285466]
[1717848352938,2.912451,3682.4,3681.7,1.39285466]
[1717848353329,2.3409,3682.4,3681.7,1.39285466]
[1717848353530,2.3409,3682.4,3681.9,1.39285466]
[1717848353691,3.46374,3685.0,3681.9,1.39285466]
[1717848353692,2.3409,3683.0,3681.9,1.39285466]
[1717848354041,0.51028023,3682.9,3681.9,1.39285466]
[1717848354334,2.3409,3683.0,3682.1,4.10865466]
[1717848355836,2.3409,3683.0,3682.2,0.19702788]
[1717848355995,5.3409,3683.0,3682.3,1.39285466]
[1717848356196,0.81028023,3682.9,3682.4,0.19668731]
[1717848356396,3.81028023,3682.9,3682.5,1.39285466]
[1717848356597,3.81028023,3682.9,3682.6,0.19668731]
[1717848356899,3.81028023,3682.9,3682.6,1.58954197]
[1717848357098,0.88663202,3682.8,3682.6,1.58954197]
[1717848357835,0.88663202,3682.8,3682.7,1.39285466]
[1717848357996,3.0,3682.9,3682.7,1.39285466]
[1717848358329,2.3409,3683.0,3682.8,0.19671207]
[1717848358330,5.3409,3683.0,3682.8,0.19671207]
[1717848358532,3.0,3683.0,3682.9,1.39285466]
[1717848358736,2.3086,3683.4,3682.9,1.5882334]
[1717848358932,2.3086,3683.4,3682.9,1.39285466]
[1717848361742,2.3086,3683.4,3683.0,0.19537874]
[1717848362048,2.3086,3683.4,3683.1,1.39285466]
[1717848362261,2.71496,3683.3,3683.0,0.19537874]
[1717848362435,2.71496,3683.3,3682.4,7.48]
[1717848362436,3.8295034,3683.2,3682.4,7.48]
[1717848362604,3.8295034,3683.2,3683.1,0.19537874]
[1717848362804,3.8295034,3683.2,3682.5,1.39285466]
[1717848362805,2.4291,3683.0,3682.5,1.39285466]
[1717848363033,5.4291,3683.0,3682.5,1.39285466]
[1717848363235,1.19737134,3682.9,3682.5,1.39285466]
[1717848363439,4.19737134,3682.9,3682.5,1.39285466]
[1717848368462,3.0,3682.9,3682.5,1.39285466]
[1717848368762,5.4291,3683.0,3682.5,1.39285466]
[1717848370761,5.4291,3683.0,3682.6,0.19524249]
[1717848370947,5.4291,3683.0,3682.6,1.58809715]
[1717848371263,6.243521,3683.0,3682.6,1.58809715]
[1717848371567,2.74807063,3682.9,3682.6,0.19524249]
[1717848371773,2.71539,3682.7,3682.0,7.48]
[1717848371943,2.3261,3682.4,3682.1,1.39285466]
[1717848372262,5.3261,3682.4,3682.1,1.39285466]
[1717848376436,2.71569,3682.3,3681.5,7.48]
[1717848376669,2.71569,3682.3,3681.6,1.39285466]
[1717848376832,3.0,3682.2,3681.6,1.39285466]
[1717848377578,2.71585,3682.1,3681.6,1.39285466]
[1717848380163,2.716,3681.9,3681.1,7.4808]
[1717848380374,2.71619,3681.7,3681.2,1.39285466]
[1717848380882,0.3,3681.9,3681.2,1.39285466]
[1717848381176,3.0,3682.0,3681.2,1.39285466]
[1717848381675,2.71604,3681.9,3681.2,1.39285466]
[1717848381857,2.71619,3681.7,3681.2,1.39285466]
[1717848383474,2.4097,3681.6,3681.2,1.39285466]
[1717848383937,2.71629,3681.5,3681.2,1.39285466]
[1717848385075,3.0,3681.4,3681.2,1.39285466]
[1717848385792,3.0,3681.4,3681.3,0.19592372]
[1717848385967,3.0,3681.4,3681.3,1.39285466]
[1717848386174,3.0,3681.4,3681.3,1.58877838]
[1717848386703,3.812599,3681.4,3681.3,0.19592372]
[1717848387014,2.71643,3681.3,3681.1,0.0008]
[1717848387210,2.71643,3681.3,3681.2,1.39285466]
[1717848387418,2.71643,3681.3,3681.1,0.0008]
[1717848387567,3.6103029,3681.3,3681.1,0.0008]
[1717848387769,3.0,3681.2,3681.1,0.0008]
[1717848397721,5.3617,3681.2,3681.1,0.0008]
[1717848398281,2.71715,3680.4,3679.8,7.48]
[1717848398523,2.71724,3680.2,3679.9,1.39285466]
[1717848398826,2.71724,3680.2,3679.9,1.58352448]
[1717848400374,2.3617,3680.6,3679.9,1.58352448]
[1717848400375,2.71696,3680.6,3679.9,1.58352448]
[1717848400579,3.0,3680.5,3679.9,1.58352448]
[1717848402546,2.5109,3680.5,3679.9,1.58352448]
[1717848402883,2.5109,3680.5,3680.0,2.3859]
[1717848403084,2.5109,3680.5,3680.1,1.39285466]
[1717848403399,2.5109,3680.5,3680.1,1.58150637]
[1717848409889,2.71711,3680.4,3680.1,1.58150637]
[1717848410337,2.71711,3680.4,3680.1,0.18865171]
[1717848410704,2.71731,3680.2,3679.5,2.3859]
[1717848411018,2.71731,3680.2,3679.6,1.39285466]
[1717848411222,3.0,3680.1,3679.6,1.39285466]
[1717848413921,2.71695,3680.6,3679.6,1.39285466]
[1717848414131,3.0,3680.5,3679.6,1.39285466]
[1717848414919,3.0,3680.5,3679.6,4.11052466]
[1717848415113,3.0,3680.5,3679.7,2.3859]
[1717848415312,2.71695,3680.6,3679.8,1.39285466]
[1717848415959,2.71695,3680.6,3679.9,0.18927161]
[1717848416164,2.71695,3680.6,3680.0,1.39285466]
[1717848416854,2.71695,3680.6,3680.1,0.18927161]
[1717848417072,2.71695,3680.6,3680.2,1.39285466]
[1717848417734,2.71695,3680.6,3680.3,0.18927161]
[1717848417934,2.71695,3680.6,3680.4,1.39285466]
[1717848419350,3.0,3680.9,3680.4,1.39285466]
[1717848420340,2.7168,3680.8,3680.4,1.39285466]
[1717848420641,3.0,3680.7,3680.4,1.39285466]
[1717848421591,3.0,3680.7,3680.4,3.75555466]
[1717848421910,3.0,3681.1,3680.5,0.18927161]
[1717848422084,3.0,3681.1,3680.6,1.39285466]
[1717848422445,3.0,3681.1,3680.7,0.18919721]
[1717848422650,3.0,3681.1,3680.6,1.39285466]
[1717848422651,3.5763753,3681.1,3680.6,1.39285466]
[1717848422851,3.5763753,3681.1,3680.8,0.18919721]
[1717848423051,3.5763753,3681.1,3680.6,1.39285466]
[1717848423292,3.5763753,3681.1,3680.9,0.18919721]
[1717848423447,0.63401283,3681.0,3680.6,1.39285466]
[1717848423647,3.63401283,3681.0,3680.6,1.39285466]
[1717848423884,0.63401283,3681.0,3680.6,1.39285466]
[1717848424746,3.0,3681.1,3680.6,1.39285466]
[1717848426056,2.71668,3681.0,3680.6,1.39285466]
[1717848426284,3.0,3680.9,3680.6,1.39285466]
[1717848429982,3.30366967,3681.4,3680.6,3.68695466]
[1717848430323,0.725,3681.2,3680.6,3.68695466]
[1717848430878,0.725,3681.2,3680.7,0.18885622]
[1717848431071,3.0,3681.3,3680.8,1.39285466]
[1717848431289,2.71604,3681.9,3680.9,2.2941]
[1717848431489,2.71604,3681.9,3681.0,1.39285466]
[1717848432119,0.725,3681.7,3681.1,0.18858351]
[1717848432434,2.71604,3681.9,3681.2,1.39285466]
[1717848432636,0.725,3681.8,3681.2,1.58101053]
[1717848433290,2.71604,3681.9,3681.2,1.58101053]
[1717848433491,2.71604,3681.9,3681.3,2.2941]
[1717848433700,3.0,3681.8,3681.4,1.39285466]
[1717848433895,3.0,3682.3,3681.4,1.39285466]
[1717848434238,3.0,3682.3,3681.5,1.58101053]
[1717848434411,2.71567,3682.4,3681.5,1.58101053]
[1717848435037,2.71578,3682.2,3681.5,1.58101053]
[1717848435248,2.71593,3682.0,3681.5,1.58101053]
[1717848435743,2.71621,3681.6,3681.5,0.18815587]
[1717848436233,2.71663,3681.1,3680.2,7.48]
[1717848436387,2.71663,3681.1,3680.0,2.71733]
[1717848436388,3.0,3681.0,3680.3,1.39285466]
[1717848436588,3.0,3681.0,3680.4,1.39285466]
[1717848436827,3.0,3681.5,3680.4,1.39285466]
[1717848437145,3.0,3681.5,3680.7,1.39285466]
[1717848437288,2.7159,3682.1,3680.9,1.39285466]
[1717848437529,3.0,3682.0,3681.0,0.04237791]
[1717848437714,3.0,3682.0,3681.1,1.39285466]
[1717848437928,3.0,3682.0,3680.8,2.71677]
[1717848437929,2.7159,3682.1,3681.3,2.4436]
[1717848438228,2.7159,3682.1,3681.4,1.39285466]
[1717848439189,3.0,3682.0,3681.4,1.39285466]
[1717848441268,3.0,3682.0,3681.5,1.39285466]
[1717848445948,3.0,3682.0,3681.6,0.18809397]
[1717848446148,3.0,3682.0,3681.7,1.39285466]
[1717848446651,2.71598,3681.9,3681.8,0.18809397]
[1717848446870,2.71598,3681.9,3681.7,1.39285466]
[1717848447150,2.71598,3681.9,3681.8,0.18809397]
[1717848447503,2.71598,3681.9,3681.7,1.39285466]
[1717848447933,2.71598,3681.9,3681.8,0.18809397]
[1717848448275,3.697738,3681.9,3681.1,7.48]
[1717848448546,2.71628,3681.6,3681.2,1.39285466]
[1717848455933,0.725,3681.5,3681.2,1.39285466]
[1717848457143,3.0,3681.8,3681.2,1.39285466]
[1717848457342,0.725,3681.7,3681.2,1.39285466]
[1717848457540,3.0,3681.9,3681.2,1.39285466]
[1717848457780,0.725,3681.6,3681.2,1.39285466]
[1717848460637,0.725,3681.6,3681.3,0.18769732]
[1717848460840,0.725,3681.6,3680.5,2.3128]
[1717848460841,0.725,3681.4,3680.5,2.3128]
[1717848461067,5.71628,3681.5,3681.4,0.18769732]
[1717848461269,6.44128,3681.5,3680.6,1.39285466]
[1717848461465,5.71628,3681.5,3681.4,0.18783363]
[1717848461736,6.44128,3681.5,3681.4,1.39285466]
[1717848462468,3.0,3681.5,3681.4,1.39285466]
[1717848462672,0.725,3681.5,3681.4,1.39285466]
[1717848462856,0.725,3681.5,3681.4,1.58068829]
[1717848463053,0.72391476,3681.5,3681.4,1.58068829]
[1717848466496,3.58718268,3681.8,3681.4,1.58068829]
[1717848466796,0.58718268,3682.2,3681.6,3.80805466]
[1717848467086,2.99931077,3682.4,3681.6,3.80805466]
[1717848467395,3.30249268,3682.9,3681.8,1.39285466]
[1717848467555,0.725,3682.6,3681.8,1.39285466]
[1717848467756,0.725,3682.2,3681.9,0.18732561]
[1717848467987,0.725,3682.2,3682.0,1.39285466]
[1717848468457,0.725,3682.2,3682.1,0.18732561]
[1717848468985,2.71584,3682.1,3681.1,5.13172]
[1717848469185,0.725,3681.7,3681.2,5.39285466]
[1717848469362,0.725,3681.7,3681.2,5.57366441]
[1717848470063,0.725,3681.9,3681.2,5.57366441]
[1717848470259,2.71584,3682.1,3681.2,1.57366441]
[1717848470462,2.71584,3682.1,3681.3,1.39285466]
[1717848470790,0.725,3681.9,3681.3,1.57371396]
[1717848471851,2.71584,3682.1,3681.3,1.57371396]
[1717848478779,2.71584,3682.1,3681.4,1.39285466]
[1717848479184,2.71584,3682.1,3681.5,0.18085311]
[1717848479384,2.71584,3682.1,3681.6,1.39285466]
[1717848480018,2.71584,3682.1,3681.7,2.58385311]
[1717848480176,2.71584,3682.1,3681.8,1.39285466]
[1717848480513,2.71584,3682.1,3681.9,0.18108848]
[1717848480678,2.71584,3682.1,3682.0,1.39285466]
[1717848481015,5.71584,3682.1,3682.0,1.39285466]
[1717848481223,5.71584,3682.1,3682.0,1.57394314]
[1717848484524,3.0,3682.1,3682.0,1.57394314]
[1717848484720,2.71564,3682.4,3682.0,1.39285466]
[1717848485028,3.0,3682.3,3682.0,1.39285466]
[1717848487601,3.0,3682.3,3682.0,3.66005466]
[1717848488023,3.0,3682.3,3682.1,0.18108848]
[1717848488224,3.0,3682.3,3682.2,1.39285466]
[1717848488896,3.0,3682.3,3682.2,1.57394314]
[1717848494835,2.71564,3682.4,3682.2,1.57394314]
[1717848495630,2.71564,3682.4,3682.2,3.84114314]
[1717848497147,1.31207372,3682.6,3682.2,3.84114314]
[1717848497352,0.725,3682.6,3682.2,3.84114314]
[1717848498152,3.58707372,3682.7,3682.2,3.84114314]
[1717848498471,4.31207372,3682.7,3682.2,3.84114314]
[1717848503841,0.725,3682.3,3682.2,1.57394314]
[1717848504563,0.725,3682.3,3681.5,2.3808]
[1717848504727,0.725,3682.3,3681.6,1.5736768]
[1717848505561,0.58707372,3682.4,3681.6,1.5736768]
[1717848505727,0.725,3682.3,3681.6,1.5736768]
[1717848505934,0.725,3682.3,3681.6,0.4085092]
[1717848507828,0.58707372,3682.4,3681.6,0.4085092]
[1717848508156,0.725,3682.4,3681.6,0.4085092]
[1717848509667,3.0,3682.5,3681.6,0.4085092]
[1717848509872,3.725,3682.5,3681.6,0.4085092]
[1717848510242,3.0,3682.5,3681.8,1.39285466]
[1717848510568,3.725,3682.5,3681.9,2.55539217]
[1717848510735,3.725,3682.5,3682.0,1.39285466]
[1717848511166,0.725,3682.7,3682.1,0.17459217]
[1717848511358,0.725,3682.7,3682.2,1.39285466]
[1717848511740,0.725,3682.7,3682.3,0.17459217]
[1717848511967,0.725,3682.7,3682.4,1.39285466]
[1717848512433,0.725,3682.7,3682.5,0.17459217]
[1717848512633,0.725,3682.7,3682.6,1.39285466]
[1717848513229,0.725,3682.7,3682.6,1.56744683]
[1717848513969,3.5870297,3682.9,3682.6,1.56744683]
[1717848514265,3.0,3682.9,3682.6,1.56744683]
[1717848514857,3.5870297,3682.9,3682.6,1.56744683]
[1717848517255,3.0,3682.9,3682.6,1.56744683]
[1717848517639,3.587,3682.9,3682.6,1.56744683]
[1717848517889,3.0,3682.9,3682.6,1.56744683]
[1717848518771,3.5869974,3683.3,3682.6,1.56744683]
[1717848518943,0.725,3683.1,3682.6,1.56744683]
[1717848519964,3.5869974,3683.3,3682.6,1.56744683]
[1717848520208,0.725,3683.1,3682.6,1.56744683]
[1717848520842,3.5869974,3683.3,3682.6,1.56744683]
[1717848521168,0.725,3683.2,3682.6,1.56744683]
[1717848522672,3.725,3683.3,3682.6,1.56744683]
[1717848523077,3.0,3683.3,3682.6,1.56744683]
[1717848523283,3.725,3683.3,3682.6,1.56744683]
[1717848523451,3.0,3683.3,3682.6,1.56744683]
[1717848523652,3.725,3683.3,3682.6,1.56744683]
[1717848524085,2.71489,3683.4,3682.6,1.56744683]
[1717848526793,2.71489,3683.4,3682.7,2.3489]
[1717848526997,2.71489,3683.4,3682.8,1.56668718]
[1717848527644,3.43989,3683.4,3682.8,1.56668718]
[1717848530055,2.71489,3683.4,3682.8,1.56668718]
[1717848531891,0.725,3683.5,3682.8,1.56668718]
[1717848533916,3.0,3683.7,3682.8,1.56668718]
[1717848534068,3.725,3683.7,3682.8,1.56668718]
[1717848536183,3.0,3683.7,3682.9,1.39285466]
[1717848536414,3.725,3683.7,3683.0,2.46669403]
[1717848536570,3.725,3683.7,3683.1,1.39285466]
[1717848536973,3.725,3683.7,3683.2,0.17289403]
[1717848537195,3.725,3683.7,3683.3,1.39285466]
[1717848537586,3.725,3683.7,3683.4,0.17289403]
[1717848537878,3.725,3683.7,3683.5,1.39285466]
[1717848538417,2.71473,3683.6,3682.7,5.00134]
[1717848538586,0.725,3683.2,3682.8,1.39285466]
[1717848538912,0.725,3683.4,3682.8,1.39285466]
[1717848545535,3.0,3683.5,3682.8,1.39285466]
[1717848548755,0.725,3683.4,3682.8,1.39285466]
[1717848550819,0.725,3683.4,3682.9,0.17280766]
[1717848551018,0.725,3683.4,3683.0,1.39285466]
[1717848551398,0.725,3683.4,3683.1,0.17280766]
[1717848551599,0.725,3683.4,3683.2,1.39285466]
[1717848551908,0.725,3683.4,3683.3,0.17280766]
[1717848552115,0.725,3683.4,3683.3,1.56566232]
[1717848554298,3.58689262,3683.5,3683.3,1.56566232]
[1717848554555,3.58689262,3683.5,3683.4,1.39285466]
[1717848555233,3.58689262,3683.5,3683.4,1.56566232]
[1717848560905,3.0,3683.5,3683.4,1.56566232]
[1717848561852,0.58689262,3683.6,3683.4,1.56566232]
[1717848562003,2.71416,3684.4,3683.4,1.56566232]
[1717848562356,0.725,3684.3,3683.5,2.4698]
[1717848562657,2.71416,3684.4,3683.5,2.4698]
[1717848562658,3.43916,3684.4,3683.6,0.17280146]
[1717848562964,4.02598287,3684.4,3683.7,1.39285466]
[1717848563520,3.30098287,3684.4,3683.8,0.17280146]
[1717848563877,3.43916,3684.4,3683.9,1.39285466]
[1717848564162,3.0,3684.3,3684.0,0.17249906]
[1717848564377,3.0,3684.3,3684.1,1.39285466]
[1717848564931,3.0,3684.3,3684.2,0.17249906]
[1717848565144,3.0,3684.3,3684.2,1.56535372]
[1717848565689,3.725,3684.3,3684.2,1.56535372]
[1717848567013,3.0,3684.3,3684.2,1.56535372]
[1717848567810,2.71386,3684.8,3684.2,1.56535372]
[1717848567993,3.0,3684.7,3684.3,1.39285466]
[1717848568160,3.0,3684.7,3684.4,0.17202052]
[1717848568355,3.0,3684.7,3684.5,1.39285466]
[1717848568598,3.43903,3684.6,3683.7,5.18445]
[1717848568863,0.725,3684.3,3683.8,1.56487518]
[1717848569620,3.0,3684.5,3683.8,1.56487518]
[1717848571610,3.0,3684.5,3684.0,1.39285466]
[1717848571811,3.725,3684.5,3684.0,1.39285466]
[1717848572027,3.725,3684.5,3684.1,0.17202052]
[1717848572313,3.725,3684.5,3684.2,1.39285466]
[1717848572720,3.725,3684.5,3684.3,0.17202052]
[1717848573049,3.725,3684.5,3684.4,1.39285466]
[1717848573176,3.725,3684.5,3684.4,1.56487518]
[1717848573376,3.725,3684.5,3684.4,1.39285466]
[1717848585177,3.725,3684.5,3684.4,1.56479498]
[1717848585963,3.0,3684.5,3684.4,1.56479498]
[1717848589190,2.71403,3684.6,3684.4,1.56479498]
[1717848589519,0.725,3684.9,3684.4,1.56479498]
[1717848593685,0.725,3684.7,3684.4,1.56479498]
[1717848593885,0.725,3684.9,3684.4,1.56479498]
[1717848597299,5.71372,3685.0,3684.4,1.56479498]
[1717848597501,6.43872,3685.0,3684.4,1.56479498]
[1717848600445,0.725,3685.0,3684.4,1.56479498]
[1717848600608,3.43838,3685.5,3684.6,2.3144]
[1717848600808,3.43838,3685.5,3684.7,1.56176074]
[1717848601014,0.725,3685.3,3684.7,1.56176074]
[1717848603547,3.43838,3685.5,3684.7,1.56176074]
[1717848603935,0.725,3685.3,3684.7,1.56176074]
[1717848605652,5.3862,3685.8,3684.8,3.79955466]
[1717848605851,0.725,3685.5,3684.8,3.79955466]
[1717848606047,3.0,3685.7,3685.4,1.39285466]
[1717848606348,1.085905,3687.0,3685.4,1.39285466]
[1717848606349,0.725,3686.0,3685.5,2.4067]
[1717848606556,0.725,3686.0,3685.6,1.39285466]
[1717848607156,0.725,3685.8,3685.7,0.16830779]
[1717848607358,0.725,3685.8,3685.7,1.56116245]
[1717848607793,3.58652698,3686.2,3685.7,1.56116245]
[1717848608091,0.725,3685.9,3685.8,1.39285466]
[1717848608580,0.725,3685.9,3685.8,1.56097129]
[1717848608980,3.58652698,3686.2,3685.8,1.56097129]
[1717848609285,0.725,3685.9,3685.8,1.56097129]
[1717848612173,3.0,3686.2,3685.8,1.56097129]
[1717848612765,0.725,3686.1,3685.8,1.56097129]
[1717848613083,3.0,3686.2,3685.8,1.39285466]
[1717848613254,0.725,3686.1,3685.8,1.39285466]
[1717848613447,3.0,3686.2,3685.8,1.39285466]
[1717848613647,0.725,3686.1,3685.9,0.16811663]
[1717848613971,0.725,3686.1,3686.0,1.39285466]
[1717848615180,3.0,3686.2,3686.0,1.39285466]
[1717848615377,0.725,3686.1,3686.0,1.39285466]
[1717848617544,3.0,3686.2,3686.0,1.39285466]
[1717848617972,0.725,3686.1,3686.0,1.39285466]
[1717848618973,3.0,3686.2,3686.0,1.39285466]
[1717848619176,0.725,3686.1,3686.0,1.39285466]
[1717848621089,3.0,3686.2,3686.0,1.39285466]